fUST/lending_fUST_20240613
["ID","MTS","AMOUNT","RATE_DAILY","PERIOD"]
[329335649,1718255462104,-1000.0,0.00018904,2]
[329335650,1718255462115,-1000.0,0.00018904,2]
[329335651,1718255462126,-1000.0,0.00018904,2]
[329335652,1718255462135,-1000.0,0.00018904,2]
[329335653,1718255462147,-1000.0,0.00018904,2]
[329335654,1718255462157,-1000.0,0.00018904,2]
[329335655,1718255462167,-1000.0,0.00018904,2]
[329335656,1718255462193,-682.222965,0.00018904,2]
[329335657,1718255462209,-579.4,0.00018904,2]
[329335658,1718255462220,-1056.582583,0.00018904,2]
[329335659,1718255462230,-261.555203,0.00018904,2]
[329335660,1718255462241,-1056.582583,0.00018904,2]
[329335661,1718255462253,-261.555203,0.00018904,2]
[329335662,1718255462264,-151.0,0.00018904,2]
[329335663,1718255462277,-151.0,0.00018904,2]
[329335664,1718255462288,-151.0,0.00018904,2]
[329335665,1718255462299,-151.0,0.00018904,2]
[329335666,1718255462313,-365.801331,0.00018904,2]
[329335667,1718255462393,-365.801331,0.00018904,2]
[329335668,1718255462437,-252.58596097,0.00018904,2]
[329335669,1718255462465,-1083.37,0.00018904,2]
[329335670,1718255462477,-151.0,0.00018904,2]
[329335671,1718255462499,-500.0,0.00018904,2]
[329335672,1718255462528,-531.0,0.00018904,2]
[329335673,1718255462548,-1083.35,0.00018904,2]
[329335674,1718255462577,-963.51,0.00018904,2]
[329335675,1718255462598,-542.05,0.00018904,2]
[329335676,1718255462634,-151.0,0.00018904,2]
[329335677,1718255462667,-661.67,0.00018904,2]
[329335678,1718255462684,-500.0,0.00018904,2]
[329335679,1718255462701,-534.160064,0.00018904,2]
[329335680,1718255462712,-917.561098,0.00018904,2]
[329335681,1718255462724,-534.160064,0.00018904,2]
[329335682,1718255462735,-917.561098,0.00018904,2]
[329335683,1718255462759,-151.0,0.00018904,2]
[329335684,1718255462785,-838.8,0.00018904,2]
[329335685,1718255462797,-500.0,0.00018904,2]
[329335686,1718255462826,-151.0,0.00018904,2]
[329335687,1718255462859,-236.636312,0.00018904,2]
[329335688,1718255462873,-1534.55,0.00018904,2]
[329335689,1718255462886,-151.0,0.00018904,2]
[329335690,1718255462904,-236.636312,0.00018904,2]
[329335691,1718255462943,-151.0,0.00018904,2]
[329335692,1718255462965,-3983.94,0.00018904,2]
[329335693,1718255462989,-550.21,0.00018904,2]
[329335694,1718255463003,-2579.12,0.00018904,2]
[329335695,1718255463022,-4764.33,0.00018904,2]
[329335696,1718255463044,-500.0,0.00018904,2]
[329335697,1718255463067,-464.196434,0.00018904,2]
[329335698,1718255463085,-464.196434,0.00018904,2]
[329335699,1718255463111,-500.0,0.00018904,2]
[329335700,1718255463128,-1062.54,0.00018904,2]
[329335701,1718255463144,-1262.94042,0.00018904,2]
[329335702,1718255463161,-593.19,0.00018904,2]
[329335703,1718255463180,-1262.94042,0.00018904,2]
[329335704,1718255463203,-1163.16,0.00018904,2]
[329335705,1718255463218,-571.3,0.00018904,2]
[329335706,1718255463235,-1777.65,0.00018904,2]
[329335707,1718255463256,-178.298899,0.00018904,2]
[329335708,1718255463280,-500.0,0.00018904,2]
[329335709,1718255463300,-500.0,0.00018904,2]
[329335710,1718255463322,-500.0,0.00018904,2]
[329335711,1718255463339,-644.04,0.00018949,2]
[329335712,1718255463358,-7271.83096458,0.00019,2]
[329335713,1718255463371,-394.24290711,0.00019,2]
[329335714,1718255463396,-153.0,0.00019041,2]
[329335715,1718255463413,-153.0,0.00019041,2]
[329335716,1718255463427,-153.0,0.00019041,2]
[329335717,1718255463446,-153.0,0.00019041,2]
[329335718,1718255463484,-150.0,0.00019044,2]
[329335719,1718255463520,-2333.68766038,0.00019077,2]
[329335720,1718255463535,-605.0,0.00019088,2]
[329335721,1718255463549,-5282.5380268,0.0001913,2]
[329335722,1718255463568,-463.902014,0.00019176,2]
[329335723,1718255463598,-222.14620021,0.00019177,2]
[329335724,1718255463635,-163.55153862,0.00019177,2]
[329335725,1718255463685,-644.04,0.00019177,2]
[329335726,1718255463698,-500.0,0.00019177,2]
[329335727,1718255463714,-165.42545458,0.00019178,2]
[329335728,1718255463727,-500.0,0.00019178,2]
[329335729,1718255463741,-500.0,0.00019178,2]
[329335730,1718255463757,-250.0,0.00019178,2]
[329335731,1718255463800,-201.05353347,0.00019178,2]
[329335732,1718255463856,-500.0,0.00019178,2]
[329335733,1718255463877,-500.0,0.00019178,2]
[329335734,1718255463889,-500.72290619,0.00019178,2]
[329335735,1718255463912,-500.0,0.00019178,2]
[329335736,1718255463928,-500.0,0.00019178,2]
[329335737,1718255463944,-397.1318367,0.00019178,2]
[329335738,1718255463958,-500.0,0.00019178,2]
[329335739,1718255463973,-500.0,0.00019178,2]
[329335740,1718255463993,-363.29954944,0.00019178,2]
[329335741,1718255464014,-200.0,0.00019178,2]
[329335742,1718255464028,-500.0,0.00019178,2]
[329335743,1718255464058,-500.0,0.00019178,2]
[329335744,1718255464070,-606.27407719,0.00019178,2]
[329335745,1718255464090,-500.0,0.00019178,2]
[329335746,1718255464110,-353.26925003,0.00019178,2]
[329335747,1718255464128,-1052.06027902,0.00019178,2]
[329335748,1718255464141,-151.0,0.00019178,2]
[329335749,1718255464152,-512.49,0.00019178,2]
[329335750,1718255464163,-500.0,0.00019178,2]
[329335751,1718255464177,-151.0,0.00019178,2]
[329335752,1718255464196,-500.0,0.00019178,2]
[329335753,1718255464208,-151.0,0.00019178,2]
[329335754,1718255464219,-151.744021,0.00019178,2]
[329335755,1718255464231,-1880.94,0.00019178,2]
[329335756,1718255464254,-500.0,0.00019178,2]
[329335757,1718255464276,-237.94626967,0.00019178,2]
[329335758,1718255464289,-579.4,0.00019178,2]
[329335759,1718255464306,-500.0,0.00019178,2]
[329335760,1718255464320,-437.59123416,0.00019178,2]
[329335761,1718255464339,-534.22383707,0.00019178,2]
[329335762,1718255464357,-289.06018444,0.00019178,2]
[329335763,1718255464372,-519.83251015,0.00019178,2]
[329335764,1718255464386,-500.0,0.00019178,2]
[329335765,1718255464420,-500.0,0.00019178,2]
[329335766,1718255464439,-407.66037774,0.00019178,2]
[329335767,1718255464468,-500.0,0.00019178,2]
[329335768,1718255464485,-500.0,0.00019178,2]
[329335769,1718255464517,-500.0,0.00019178,2]
[329335770,1718255464537,-500.0,0.00019178,2]
[329335771,1718255464553,-500.0,0.00019178,2]
[329335772,1718255464580,-500.0,0.00019178,2]
[329335773,1718255464601,-500.0,0.00019178,2]
[329335774,1718255464613,-500.0,0.00019178,2]
[329335775,1718255464624,-500.0,0.00019178,2]
[329335776,1718255464635,-500.0,0.00019178,2]
[329335777,1718255464646,-500.0,0.00019178,2]
[329335778,1718255464658,-500.0,0.00019178,2]
[329335779,1718255464668,-500.0,0.00019178,2]
[329335780,1718255464679,-456.03569436,0.00019178,2]
[329335781,1718255464690,-500.0,0.00019178,2]
[329335782,1718255464700,-500.0,0.00019178,2]
[329335783,1718255464714,-500.0,0.00019178,2]
[329335784,1718255464726,-503.31378211,0.00019178,2]
[329335785,1718255464737,-503.31378211,0.00019178,2]
[329335786,1718255464752,-503.31378211,0.00019178,2]
[329335787,1718255464765,-503.31378211,0.00019178,2]
[329335788,1718255464777,-503.31378211,0.00019178,2]
[329335789,1718255464788,-503.31378211,0.00019178,2]
[329335790,1718255464815,-503.31378211,0.00019178,2]
[329335791,1718255464827,-503.31378211,0.00019178,2]
[329335792,1718255464844,-503.31378211,0.00019178,2]
[329335793,1718255464868,-503.31378211,0.00019178,2]
[329335794,1718255464893,-503.31378211,0.00019178,2]
[329335795,1718255464920,-503.31378211,0.00019178,2]
[329335796,1718255464931,-503.31378211,0.00019178,2]
[329335797,1718255464944,-503.31378211,0.00019178,2]
[329335798,1718255464956,-503.31378211,0.00019178,2]
[329335799,1718255464973,-503.31378211,0.00019178,2]
[329335800,1718255464984,-503.31378211,0.00019178,2]
[329335801,1718255464996,-503.31378211,0.00019178,2]
[329335802,1718255465008,-503.31378211,0.00019178,2]
[329335803,1718255465024,-503.31378211,0.00019178,2]
[329335804,1718255465056,-503.31378211,0.00019178,2]
[329335805,1718255465071,-503.31378211,0.00019178,2]
[329335806,1718255465084,-503.31378211,0.00019178,2]
[329335807,1718255465099,-500.0,0.00019178,2]
[329335808,1718255465120,-500.0,0.00019178,2]
[329335809,1718255465143,-500.0,0.00019178,2]
[329335810,1718255465160,-500.0,0.00019178,2]
[329335811,1718255465174,-500.0,0.00019178,2]
[329335812,1718255465185,-500.0,0.00019178,2]
[329335813,1718255465201,-500.0,0.00019178,2]
[329335814,1718255465222,-500.0,0.00019178,2]
[329335815,1718255465250,-500.0,0.00019178,2]
[329335816,1718255465270,-500.0,0.00019178,2]
[329335817,1718255465285,-500.0,0.00019178,2]
[329335818,1718255465296,-500.0,0.00019178,2]
[329335819,1718255465309,-500.0,0.00019178,2]
[329335820,1718255465321,-500.0,0.00019178,2]
[329335821,1718255465334,-500.0,0.00019178,2]
[329335822,1718255465351,-500.0,0.00019178,2]
[329335823,1718255465369,-500.0,0.00019178,2]
[329335824,1718255465380,-500.0,0.00019178,2]
[329335825,1718255465392,-500.0,0.00019178,2]
[329335826,1718255465408,-1083.37,0.00019178,2]
[329335827,1718255465426,-500.0,0.00019178,2]
[329335828,1718255465447,-500.0,0.00019178,2]
[329335829,1718255465466,-500.0,0.00019178,2]
[329335830,1718255465513,-500.0,0.00019178,2]
[329335831,1718255465525,-500.0,0.00019178,2]
[329335832,1718255465537,-500.0,0.00019178,2]
[329335833,1718255465550,-500.0,0.00019178,2]
[329335834,1718255465561,-500.0,0.00019178,2]
[329335835,1718255465572,-500.0,0.00019178,2]
[329335836,1718255465584,-261.26382218,0.00019178,2]
[329335837,1718255465596,-500.0,0.00019178,2]
[329335838,1718255465606,-500.0,0.00019178,2]
[329335839,1718255465621,-531.0,0.00019178,2]
[329335840,1718255465634,-1083.35,0.00019178,2]
[329335841,1718255465645,-563.7068381,0.00019178,2]
[329335842,1718255465656,-963.51,0.00019178,2]
[329335843,1718255465667,-542.05,0.00019178,2]
[329335844,1718255465678,-661.67,0.00019178,2]
[329335845,1718255465689,-500.0,0.00019178,2]
[329335846,1718255465700,-838.8,0.00019178,2]
[329335847,1718255465712,-366.45827398,0.00019178,2]
[329335848,1718255465723,-1534.55,0.00019178,2]
[329335849,1718255465734,-3983.94,0.00019178,2]
[329335850,1718255465747,-550.21,0.00019178,2]
[329335851,1718255465757,-2579.12,0.00019178,2]
[329335852,1718255465769,-4764.33,0.00019178,2]
[329335853,1718255465781,-500.0,0.00019178,2]
[329335854,1718255465792,-500.0,0.00019178,2]
[329335855,1718255465804,-1062.54,0.00019178,2]
[329335856,1718255465819,-593.19,0.00019178,2]
[329335857,1718255465831,-1163.16,0.00019178,2]
[329335858,1718255465854,-571.3,0.00019178,2]
[329335859,1718255465865,-1777.65,0.00019178,2]
[329335860,1718255465877,-500.0,0.00019178,2]
[329335861,1718255465888,-500.0,0.00019178,2]
[329335862,1718255465900,-206.140483,0.00019178,2]
[329335863,1718255465913,-160.1022988,0.00019178,2]
[329335864,1718255465924,-287.200125,0.00019178,2]
[329335865,1718255465936,-621.40343405,0.00019227,2]
[329335866,1718255465950,-605.0,0.00019288,2]
[329335867,1718255465962,-644.04,0.00019451,2]
[329335868,1718255465976,-500.0,0.00019451,2]
[329335869,1718255465988,-464.196434,0.00019451,2]
[329335870,1718255466017,-464.196434,0.00019451,2]
[329335871,1718255466029,-1262.94042,0.00019451,2]
[329335872,1718255466043,-1262.94042,0.00019451,2]
[329335873,1718255466054,-512.49,0.00019452,2]
[329335874,1718255466065,-500.0,0.00019452,2]
[329335875,1718255466079,-500.0,0.00019452,2]
[329335876,1718255466093,-1880.94,0.00019452,2]
[329335877,1718255466105,-500.0,0.00019452,2]
[329335878,1718255466119,-151.0,0.00019452,2]
[329335879,1718255466131,-487.112204,0.00019452,2]
[329335880,1718255466145,-487.112204,0.00019452,2]
[329335881,1718255466157,-579.4,0.00019452,2]
[329335882,1718255466170,-1056.582583,0.00019452,2]
[329335883,1718255466185,-261.555203,0.00019452,2]
[329335884,1718255466198,-1056.582583,0.00019452,2]
[329335885,1718255466212,-261.555203,0.00019452,2]
[329335886,1718255466227,-151.0,0.00019452,2]
[329335887,1718255466238,-151.0,0.00019452,2]
[329335888,1718255466250,-365.801331,0.00019452,2]
[329335889,1718255466265,-365.801331,0.00019452,2]
[329335890,1718255466288,-1083.37,0.00019452,2]
[329335891,1718255466300,-500.0,0.00019452,2]
[329335892,1718255466316,-531.0,0.00019452,2]
[329335893,1718255466338,-1083.35,0.00019452,2]
[329335894,1718255466473,-963.51,0.00019452,2]
[329335895,1718255466484,-542.05,0.00019452,2]
[329335896,1718255466519,-151.0,0.00019452,2]
[329335897,1718255466530,-661.67,0.00019452,2]
[329335898,1718255466542,-500.0,0.00019452,2]
[329335899,1718255466570,-534.160064,0.00019452,2]
[329335900,1718255466592,-917.561098,0.00019452,2]
[329335901,1718255466603,-534.160064,0.00019452,2]
[329335902,1718255466623,-917.561098,0.00019452,2]
[329335903,1718255466636,-151.0,0.00019452,2]
[329335904,1718255466649,-838.8,0.00019452,2]
[329335905,1718255466679,-151.0,0.00019452,2]
[329335906,1718255466694,-236.636312,0.00019452,2]
[329335907,1718255466709,-1534.55,0.00019452,2]
[329335908,1718255466731,-236.636312,0.00019452,2]
[329335909,1718255466755,-151.0,0.00019452,2]
[329335910,1718255466773,-151.0,0.00019452,2]
[329335911,1718255466794,-3983.94,0.00019452,2]
[329335912,1718255466820,-550.21,0.00019452,2]
[329335913,1718255466836,-2579.12,0.00019452,2]
[329335914,1718255466858,-4764.33,0.00019452,2]
[329335915,1718255466870,-500.0,0.00019452,2]
[329335916,1718255466882,-500.0,0.00019452,2]
[329335917,1718255466893,-1062.54,0.00019452,2]
[329335918,1718255466910,-593.19,0.00019452,2]
[329335919,1718255466931,-1163.16,0.00019452,2]
[329335920,1718255466955,-571.3,0.00019452,2]
[329335921,1718255466997,-1777.65,0.00019452,2]
[329335922,1718255467008,-278.3634038,0.00019452,2]
[329335923,1718255467036,-500.0,0.00019452,2]
[329335924,1718255467055,-605.0,0.00019488,2]
[329335925,1718255467070,-150.0,0.00019585,2]
[329335926,1718255467083,-605.0,0.00019688,2]
[329335927,1718255467100,-180.0,0.000197,2]
[329335928,1718255467129,-151.0,0.00019725,2]
[329335929,1718255467142,-151.0,0.00019725,2]
[329335930,1718255467162,-151.0,0.00019725,2]
[329335931,1718255467172,-644.04,0.00019725,2]
[329335932,1718255467187,-644.04,0.00019725,2]
[329335933,1718255467198,-644.04,0.00019725,2]
[329335934,1718255467223,-644.04,0.00019725,2]
[329335935,1718255467245,-644.16232979,0.00019725,2]
[329335936,1718255467256,-500.0,0.00019725,2]
[329335937,1718255467269,-152.133893,0.00019726,2]
[329335938,1718255467282,-152.157753,0.00019726,2]
[329335939,1718255467296,-512.49,0.00019726,2]
[329335940,1718255467307,-500.0,0.00019726,2]
[329335941,1718255467323,-500.0,0.00019726,2]
[329335942,1718255467335,-1880.94,0.00019726,2]
[329335943,1718255467354,-500.0,0.00019726,2]
[329335944,1718255467368,-579.4,0.00019726,2]
[329335945,1718255467381,-1083.37,0.00019726,2]
[329335946,1718255467399,-500.0,0.00019726,2]
[329335947,1718255467412,-531.0,0.00019726,2]
[329335948,1718255467425,-1083.35,0.00019726,2]
[329335949,1718255467439,-963.51,0.00019726,2]
[329335950,1718255467459,-542.05,0.00019726,2]
[329335951,1718255467479,-661.67,0.00019726,2]
[329335952,1718255467514,-500.0,0.00019726,2]
[329335953,1718255467526,-838.8,0.00019726,2]
[329335954,1718255467537,-1534.55,0.00019726,2]
[329335955,1718255467547,-3983.94,0.00019726,2]
[329335956,1718255467558,-550.21,0.00019726,2]
[329335957,1718255467571,-2579.12,0.00019726,2]
[329335958,1718255467587,-4764.33,0.00019726,2]
[329335959,1718255467603,-500.0,0.00019726,2]
[329335960,1718255467616,-500.0,0.00019726,2]
[329335961,1718255467632,-1062.54,0.00019726,2]
[329335962,1718255467660,-593.19,0.00019726,2]
[329335963,1718255467671,-1163.16,0.00019726,2]
[329335964,1718255467681,-571.3,0.00019726,2]
[329335965,1718255467693,-1777.65,0.00019726,2]
[329335966,1718255467710,-500.0,0.00019726,2]
[329335967,1718255467721,-264.605845,0.00019799,2]
[329335968,1718255467743,-151.0,0.000198,2]
[329335969,1718255467754,-205.3823407,0.00019836,2]
[329335970,1718255467765,-284.8791866,0.00019836,2]
[329335971,1718255467789,-205.3823407,0.00019836,2]
[329335972,1718255467804,-196.510993,0.00019879,2]
[329335973,1718255467815,-170.881692,0.00019879,2]
[329335974,1718255467831,-89696.77646217,0.00019888,2]
[329335975,1718255467844,-605.0,0.00019888,2]
[329335976,1718255467857,-151.0,0.00019888,2]
[329335977,1718255467873,-587.0,0.00019889,2]
[329335978,1718255467886,-64634.14541778,0.000199,2]
[329335979,1718255467903,-487.112204,0.000199,2]
[329335980,1718255467915,-487.112204,0.000199,2]
[329335981,1718255467933,-1056.582583,0.000199,2]
[329335982,1718255467947,-261.555203,0.000199,2]
[329335983,1718255467958,-1056.582583,0.000199,2]
[329335984,1718255467975,-261.555203,0.000199,2]
[329335985,1718255467989,-151.0,0.000199,2]
[329335986,1718255468005,-151.0,0.000199,2]
[329335987,1718255468019,-161.587946,0.000199,2]
[329335988,1718255468034,-151.0,0.000199,2]
[329335989,1718255468046,-365.801331,0.000199,2]
[329335990,1718255468060,-365.801331,0.000199,2]
[329335991,1718255468079,-151.0,0.000199,2]
[329335992,1718255468090,-151.0,0.000199,2]
[329335993,1718255468100,-534.160064,0.000199,2]
[329335994,1718255468111,-917.561098,0.000199,2]
[329335995,1718255468123,-534.160064,0.000199,2]
[329335996,1718255468134,-917.561098,0.000199,2]
[329335997,1718255468146,-151.0,0.000199,2]
[329335998,1718255468159,-167.594488,0.000199,2]
[329335999,1718255468173,-236.636312,0.000199,2]
[329336000,1718255468188,-236.636312,0.000199,2]
[329336001,1718255468202,-156.558975,0.000199,2]
[329336002,1718255468220,-152.806506,0.000199,2]
[329336003,1718255468237,-464.196434,0.000199,2]
[329336004,1718255468250,-464.196434,0.000199,2]
[329336005,1718255468264,-1262.94042,0.000199,2]
[329336006,1718255468277,-1262.94042,0.000199,2]
[329336007,1718255468291,-265.64187713,0.00019955,2]
[329336008,1718255468304,-26456.4090235,0.0001996,13]
[329336009,1718255468325,-65763.11924192,0.0001996,2]
[329336010,1718255468448,-5004.44623511,0.0001996,2]
[329336011,1718255468672,273.37336231,9.9e-05,2]
[329336012,1718255476311,273.37336231,9.9e-05,2]
[329336030,1718255834173,150.96980604,0.00021038,30]
[329336041,1718256464649,1000.0,0.00025,60]
[329336103,1718256635293,-198.335662,0.00015437,2]
[329336104,1718256635315,-2975.6261281,0.00015516,2]
[329336105,1718256635328,-1000.0,0.00016,4]
[329336106,1718256635368,-553.06830374,0.00016338,2]
[329336107,1718256635403,-300.0,0.00016435,2]
[329336108,1718256635424,-155.91179717,0.00016436,2]
[329336110,1718256635437,-1011.38227429,0.00016436,2]
[329336140,1718256641723,-450.81076733,0.00016436,2]
[329336141,1718256641738,-1890.92346621,0.00016436,2]
[329336142,1718256641754,-883.40837682,0.00016436,2]
[329336143,1718256641769,-304.72950229,0.00016436,2]
[329336144,1718256641786,-158.8446968,0.00016436,2]
[329336145,1718256641800,-763.76564802,0.00016436,2]
[329336146,1718256641813,-196.02047288,0.00016436,2]
[329336147,1718256641835,-11170.11302551,0.00016436,2]
[329336148,1718256641860,-205.20715136,0.00016436,2]
[329336149,1718256641936,-305.20264469,0.00016436,2]
[329336150,1718256641949,-259.82776431,0.00016436,2]
[329336151,1718256641981,-182.17858211,0.00016436,2]
[329336152,1718256641995,-187.81925843,0.00016436,2]
[329336153,1718256642007,-2995.71262963,0.00016436,2]
[329336154,1718256642022,-222.14620021,0.00016437,2]
[329336155,1718256642033,-463.902014,0.00016437,2]
[329336156,1718256642044,-981.84113583,0.00016437,2]
[329336158,1718256642062,-500.0,0.00016438,2]
[329336160,1718256642073,-501.8649398,0.00016438,2]
[329336162,1718256642086,-500.0,0.00016438,2]
[329336164,1718256642121,-502.58037714,0.00016438,2]
[329336166,1718256642164,-509.92837904,0.00016438,2]
[329336168,1718256642190,-502.24149897,0.00016438,2]
[329336169,1718256642204,-505.43986007,0.00016438,2]
[329336170,1718256642220,-500.0,0.00016438,2]
[329336171,1718256642232,-516.80415969,0.00016438,2]
[329336172,1718256642243,-500.0,0.00016438,2]
[329336173,1718256642257,-505.37461328,0.00016438,2]
[329336174,1718256642270,-500.0,0.00016438,2]
[329336175,1718256642309,-446.22667456,0.00016438,2]
[329336177,1718256642322,-500.0,0.00016438,2]
[329336178,1718256642333,-500.0,0.00016438,2]
[329336179,1718256642352,-507.80413817,0.00016438,2]
[329336180,1718256642367,-500.0,0.00016438,2]
[329336181,1718256642378,-500.0,0.00016438,2]
[329336182,1718256642404,-500.0,0.00016438,2]
[329336183,1718256642415,-500.0,0.00016438,2]
[329336184,1718256642453,-505.76896261,0.00016438,2]
[329336185,1718256642466,-500.0,0.00016438,2]
[329336186,1718256642494,-516.20863492,0.00016438,2]
[329336187,1718256642514,-500.0,0.00016438,2]
[329336188,1718256642529,-500.0,0.00016438,2]
[329336189,1718256642545,-500.0,0.00016438,2]
[329336190,1718256642562,-500.0,0.00016438,2]
[329336191,1718256642575,-500.0,0.00016438,2]
[329336192,1718256642586,-502.85401392,0.00016438,2]
[329336193,1718256642604,-500.0,0.00016438,2]
[329336194,1718256642624,-500.0,0.00016438,2]
[329336195,1718256642638,-500.0,0.00016438,2]
[329336196,1718256642660,-500.0,0.00016438,2]
[329336197,1718256642676,-500.0,0.00016438,2]
[329336198,1718256642692,-502.9462045,0.00016438,2]
[329336199,1718256642707,-500.0,0.00016438,2]
[329336200,1718256642752,-500.0,0.00016438,2]
[329336201,1718256642767,-175.60271591,0.00016438,2]
[329336202,1718256642779,-501.53972763,0.00016438,2]
[329336203,1718256642794,-500.0,0.00016438,2]
[329336204,1718256642812,-500.0,0.00016438,2]
[329336205,1718256642825,-500.0,0.00016438,2]
[329336206,1718256642842,-500.0,0.00016438,2]
[329336207,1718256642853,-506.17326596,0.00016438,2]
[329336208,1718256642888,-500.0,0.00016438,2]
[329336209,1718256642939,-500.0,0.00016438,2]
[329336210,1718256642949,-500.0,0.00016438,2]
[329336211,1718256642964,-569.9151138,0.00016438,2]
[329336212,1718256642976,-500.0,0.00016438,2]
[329336213,1718256643013,-500.0,0.00016438,2]
[329336214,1718256643044,-500.0,0.00016438,2]
[329336215,1718256643069,-500.0,0.00016438,2]
[329336216,1718256643098,-500.0,0.00016438,2]
[329336217,1718256643121,-500.0,0.00016438,2]
[329336218,1718256643133,-500.0,0.00016438,2]
[329336219,1718256643157,-500.0,0.00016438,2]
[329336220,1718256643173,-500.0,0.00016438,2]
[329336221,1718256643186,-500.0,0.00016438,2]
[329336222,1718256643198,-500.53726213,0.00016438,2]
[329336223,1718256643235,-500.0,0.00016438,2]
[329336224,1718256643247,-500.0,0.00016438,2]
[329336225,1718256643259,-500.0,0.00016438,2]
[329336226,1718256643274,-500.0,0.00016438,2]
[329336227,1718256643289,-500.0,0.00016438,2]
[329336228,1718256643326,-500.0,0.00016438,2]
[329336229,1718256643337,-500.85481312,0.00016438,2]
[329336230,1718256643361,-504.69128267,0.00016438,2]
[329336231,1718256643389,-500.0,0.00016438,2]
[329336232,1718256643400,-596.47907796,0.00016438,2]
[329336233,1718256643428,-500.0,0.00016438,2]
[329336234,1718256643445,-500.0,0.00016438,2]
[329336235,1718256643465,-500.0,0.00016438,2]
[329336236,1718256643521,-500.0,0.00016438,2]
[329336237,1718256643539,-1598.56,0.00016438,2]
[329336238,1718256643550,-500.0,0.00016438,2]
[329336239,1718256643560,-503.48571526,0.00016438,2]
[329336240,1718256643571,-500.0,0.00016438,2]
[329336241,1718256643583,-500.0,0.00016438,2]
[329336242,1718256643598,-500.0,0.00016438,2]
[329336243,1718256643637,-500.0,0.00016438,2]
[329336244,1718256643650,-500.0,0.00016438,2]
[329336245,1718256643665,-500.0,0.00016438,2]
[329336246,1718256643677,-500.0,0.00016438,2]
[329336247,1718256643690,-199.70897713,0.00016438,2]
[329336248,1718256643714,-503.1202979,0.00016438,2]
[329336249,1718256643729,-501.82755419,0.00016438,2]
[329336250,1718256643740,-500.0,0.00016438,2]
[329336251,1718256643754,-500.0,0.00016438,2]
[329336252,1718256643768,-500.0,0.00016438,2]
[329336253,1718256643782,-500.0,0.00016438,2]
[329336256,1718256643807,-500.0,0.00016438,2]
[329336258,1718256643831,-500.0,0.00016438,2]
[329336259,1718256643843,-500.0,0.00016438,2]
[329336260,1718256643855,-500.25296439,0.00016438,2]
[329336261,1718256643880,-500.0,0.00016438,2]
[329336262,1718256643905,-500.0,0.00016438,2]
[329336263,1718256643918,-505.01011904,0.00016438,2]
[329336264,1718256643942,-500.0,0.00016438,2]
[329336265,1718256643960,-500.0,0.00016438,2]
[329336266,1718256643977,-500.61771159,0.00016438,2]
[329336267,1718256643988,-500.0,0.00016438,2]
[329336268,1718256644000,-500.0,0.00016438,2]
[329336269,1718256644013,-500.0,0.00016438,2]
[329336270,1718256644026,-500.0,0.00016438,2]
[329336271,1718256644045,-500.0,0.00016438,2]
[329336272,1718256644058,-509.49320791,0.00016438,2]
[329336274,1718256644070,-500.0,0.00016438,2]
[329336276,1718256644113,-500.0,0.00016438,2]
[329336277,1718256644126,-500.0,0.00016438,2]
[329336278,1718256644138,-504.32849719,0.00016438,2]